fUST/lending_fUST_20250630
["ID","MTS","AMOUNT","RATE_DAILY","PERIOD"]
[368599989,1751225444937,-460.0,0.00019985,2]
[368599990,1751225444947,-460.0,0.00019985,2]
[368599991,1751225444957,-244.6,0.00019985,2]
[368599992,1751225444968,-752.51,0.00019985,2]
[368599993,1751225444977,-1216.82,0.00019985,2]
[368599994,1751225444986,-484.32,0.00019986,2]
[368599995,1751225444996,-508.72,0.00019986,2]
[368599996,1751225445006,-492.47,0.00019986,2]
[368599997,1751225445016,-823.83,0.00019986,2]
[368599998,1751225445025,-609.77,0.00019986,2]
[368599999,1751225445035,-376.89525707,0.00019986,2]
[368600000,1751225445045,-460.0,0.00019986,2]
[368600001,1751225445054,-460.0,0.00019986,2]
[368600002,1751225445064,-494.47,0.00019986,2]
[368600003,1751225445074,-583.73,0.00019986,2]
[368600004,1751225445083,-952.44,0.00019986,2]
[368600005,1751225445093,-692.5,0.00019986,2]
[368600006,1751225445102,-460.0,0.00019986,2]
[368600007,1751225445112,-460.0,0.00019986,2]
[368600008,1751225445122,-460.0,0.00019986,2]
[368600009,1751225445131,-460.0,0.00019986,2]
[368600010,1751225445140,-460.0,0.00019986,2]
[368600011,1751225445150,-460.0,0.00019986,2]
[368600012,1751225445159,-460.0,0.00019987,2]
[368600013,1751225445169,-460.0,0.00019987,2]
[368600014,1751225445179,-460.0,0.00019987,2]
[368600015,1751225445189,-460.0,0.00019987,2]
[368600016,1751225445198,-560.46,0.00019987,2]
[368600017,1751225445208,-633.97,0.00019987,2]
[368600018,1751225445217,-460.0,0.00019987,2]
[368600019,1751225445227,-609.88,0.00019987,2]
[368600020,1751225445237,-889.22,0.00019987,2]
[368600021,1751225445246,-460.0,0.00019987,2]
[368600022,1751225445256,-824.53,0.00019987,2]
[368600023,1751225445266,-460.0,0.00019987,2]
[368600024,1751225445275,-3402.29,0.00019987,2]
[368600025,1751225445285,-719.49,0.00019987,2]
[368600026,1751225445294,-1472.59,0.00019987,2]
[368600027,1751225445304,-1232.36,0.00019987,2]
[368600028,1751225445314,-460.0,0.00019987,2]
[368600029,1751225445323,-639.78,0.00019987,2]
[368600030,1751225445332,-462.70022526,0.00019987,2]
[368600031,1751225445342,-929.91,0.00019987,2]
[368600032,1751225445352,-1435.41,0.00019987,2]
[368600033,1751225445361,-460.0,0.00019988,2]
[368600034,1751225445371,-3777.8,0.00019988,2]
[368600035,1751225445381,-1109.8,0.00019988,2]
[368600036,1751225445390,-516.4,0.00019989,2]
[368600037,1751225445399,-669.23,0.00019989,2]
[368600038,1751225445409,-160.0,0.0002,3]
[368600039,1751225445418,-300.0,0.00020003,2]
[368600040,1751225445428,-420.0,0.00020004,2]
[368600041,1751225445437,-4338.60309873,0.00020072,2]
[368600042,1751225445447,-297.012825,0.00020187,2]
[368600043,1751225445456,-4338.60309873,0.00020245,2]
[368600044,1751225445465,-2245.7,0.00020259,2]
[368600045,1751225445475,-460.0,0.00020259,2]
[368600046,1751225445484,-460.0,0.00020259,2]
[368600047,1751225445493,-2381.83,0.00020259,2]
[368600048,1751225445503,-2684.88,0.00020259,2]
[368600049,1751225445512,-2736.72,0.00020259,2]
[368600050,1751225445521,-460.0,0.00020259,2]
[368600051,1751225445532,-460.0,0.00020259,2]
[368600052,1751225445542,-2958.39,0.00020259,2]
[368600053,1751225445552,-1591.42,0.00020259,2]
[368600054,1751225445562,-460.0,0.00020259,2]
[368600055,1751225445575,-460.0,0.00020259,2]
[368600056,1751225445584,-1628.49,0.00020259,2]
[368600057,1751225445594,-460.0,0.00020259,2]
[368600058,1751225445603,-460.0,0.00020259,2]
[368600059,1751225445612,-460.0,0.00020259,2]
[368600060,1751225445622,-752.51,0.00020259,2]
[368600061,1751225445632,-484.32,0.0002026,2]
[368600062,1751225445641,-508.72,0.0002026,2]
[368600063,1751225445652,-492.47,0.0002026,2]
[368600064,1751225445661,-823.83,0.0002026,2]
[368600065,1751225445671,-609.77,0.0002026,2]
[368600066,1751225445681,-460.0,0.0002026,2]
[368600067,1751225445691,-460.0,0.0002026,2]
[368600068,1751225445700,-494.47,0.0002026,2]
[368600069,1751225445710,-583.73,0.0002026,2]
[368600070,1751225445720,-952.44,0.0002026,2]
[368600071,1751225445730,-692.5,0.0002026,2]
[368600072,1751225445740,-460.0,0.0002026,2]
[368600073,1751225445749,-460.0,0.0002026,2]
[368600074,1751225445760,-165.28,0.0002026,2]
[368600075,1751225445770,-460.0,0.0002026,2]
[368600076,1751225445779,-460.0,0.0002026,2]
[368600077,1751225445789,-460.0,0.00020261,2]
[368600078,1751225445800,-460.0,0.00020261,2]
[368600079,1751225445810,-460.0,0.00020261,2]
[368600080,1751225445819,-460.0,0.00020261,2]
[368600081,1751225445829,-560.46,0.00020261,2]
[368600082,1751225445839,-633.97,0.00020261,2]
[368600083,1751225445849,-460.0,0.00020261,2]
[368600084,1751225445858,-609.88,0.00020261,2]
[368600085,1751225445868,-889.22,0.00020261,2]
[368600086,1751225445879,-460.0,0.00020261,2]
[368600087,1751225445889,-824.53,0.00020261,2]
[368600088,1751225445899,-460.0,0.00020261,2]
[368600089,1751225445909,-3402.29,0.00020261,2]
[368600090,1751225445918,-719.49,0.00020261,2]
[368600091,1751225445928,-1472.59,0.00020261,2]
[368600092,1751225445939,-1232.36,0.00020261,2]
[368600093,1751225445949,-460.0,0.00020261,2]
[368600094,1751225445958,-639.78,0.00020261,2]
[368600095,1751225445968,-929.91,0.00020261,2]
[368600096,1751225445978,-1435.41,0.00020261,2]
[368600097,1751225445988,-460.0,0.00020262,2]
[368600098,1751225445998,-3777.8,0.00020262,2]
[368600099,1751225446008,-1109.8,0.00020262,2]
[368600100,1751225446017,-516.4,0.00020263,2]
[368600101,1751225446028,-669.23,0.00020263,2]
[368600102,1751225446038,-151.0,0.00020264,2]
[368600103,1751225446047,-151.0,0.00020264,2]
[368600104,1751225446057,-151.0,0.00020264,2]
[368600105,1751225446067,-151.0,0.00020264,2]
[368600106,1751225446076,-1175.297616,0.00020264,2]
[368600107,1751225446086,-151.0,0.00020265,2]
[368600108,1751225446096,-475.297874,0.00020265,2]
[368600109,1751225446105,-475.297874,0.00020265,2]
[368600110,1751225446116,-589.61348626,0.00020299,2]
[368600112,1751225446125,-201.80882465,0.00020303,2]
[368600114,1751225446135,-996.0,0.0002031,2]
[368600115,1751225446144,-1500.0,0.00020324,2]
[368600116,1751225446154,-1203.1307375,0.00020324,2]
[368600117,1751225446164,-1500.0,0.00020333,2]
[368600118,1751225446174,-552.75765332,0.00020333,2]
[368600120,1751225446183,-1000.0,0.00020333,2]
[368600122,1751225446193,-5000.0,0.00020344,2]
[368600124,1751225446203,-317.9571213,0.00020356,2]
[368600125,1751225446213,-990.20409029,0.0002036,2]
[368600126,1751225446223,-1500.0,0.00020371,2]
[368600127,1751225446232,-420.83765646,0.00020371,2]
[368600128,1751225446244,-1500.0,0.00020371,2]
[368600129,1751225446253,-4338.60309873,0.00020417,3]
[368600130,1751225446263,-153.0,0.00020468,2]
[368600131,1751225446272,-13171.80173947,0.00020519,2]
[368600132,1751225446282,-1224.8,0.00020529,2]
[368600133,1751225446291,-177.92820716,0.00020529,2]
[368600134,1751225446302,-2245.7,0.00020533,2]
[368600135,1751225446311,-460.0,0.00020533,2]
[368600136,1751225446321,-460.0,0.00020533,2]
[368600137,1751225446331,-2381.83,0.00020533,2]
[368600138,1751225446341,-2684.88,0.00020533,2]
[368600139,1751225446350,-2736.72,0.00020533,2]
[368600140,1751225446359,-460.0,0.00020533,2]
[368600141,1751225446369,-460.0,0.00020533,2]
[368600142,1751225446379,-2958.39,0.00020533,2]
[368600143,1751225446389,-1591.42,0.00020533,2]
[368600144,1751225446398,-460.0,0.00020533,2]
[368600145,1751225446407,-460.0,0.00020533,2]
[368600146,1751225446417,-1628.49,0.00020533,2]
[368600147,1751225446426,-460.0,0.00020533,2]
[368600148,1751225446436,-356.38506991,0.00020533,2]
[368600149,1751225446931,-173.85579856,0.00018342,2]
[368600150,1751225446941,-546.86,0.00018616,2]
[368600151,1751225446951,-546.86,0.0001889,2]
[368600152,1751225446960,-546.86,0.00019164,2]
[368600153,1751225446970,-546.86,0.00019438,2]
[368600154,1751225446981,-546.86,0.00019712,2]
[368600155,1751225446990,-314.97180667,0.00019986,2]
[368600156,1751225447010,-231.88819333,0.00019986,2]
[368600157,1751225447020,-1216.82,0.00020259,2]
[368600158,1751225447029,-546.86,0.0002026,2]
[368600159,1751225447039,-103.61493009,0.00020533,2]
[368600160,1751225447048,-244.00539633,0.00020533,2]
[368600161,1751225447057,-752.51,0.00020533,2]
[368600162,1751225447067,-1216.82,0.00020533,2]
[368600163,1751225447076,-484.32,0.00020534,2]
[368600164,1751225447085,-508.72,0.00020534,2]
[368600165,1751225447095,-492.47,0.00020534,2]
[368600166,1751225447104,-823.83,0.00020534,2]
[368600167,1751225447113,-609.77,0.00020534,2]
[368600168,1751225447122,-460.0,0.00020534,2]
[368600169,1751225447132,-460.0,0.00020534,2]
[368600170,1751225447142,-494.47,0.00020534,2]
[368600171,1751225447150,-583.73,0.00020534,2]
[368600172,1751225447160,-952.44,0.00020534,2]
[368600173,1751225447169,-692.5,0.00020534,2]
[368600174,1751225447178,-460.0,0.00020534,2]
[368600175,1751225447187,-460.0,0.00020534,2]
[368600176,1751225447197,-460.0,0.00020534,2]
[368600177,1751225447206,-460.0,0.00020534,2]
[368600178,1751225447215,-546.86,0.00020534,2]
[368600179,1751225447225,-460.0,0.00020535,2]
[368600180,1751225447234,-460.0,0.00020535,2]
[368600181,1751225447243,-460.0,0.00020535,2]
[368600182,1751225447253,-460.0,0.00020535,2]
[368600183,1751225447262,-560.46,0.00020535,2]
[368600184,1751225447272,-633.97,0.00020535,2]
[368600185,1751225447281,-460.0,0.00020535,2]
[368600186,1751225447290,-609.88,0.00020535,2]
[368600187,1751225447300,-889.22,0.00020535,2]
[368600188,1751225447309,-460.0,0.00020535,2]
[368600189,1751225447319,-824.53,0.00020535,2]
[368600190,1751225447329,-460.0,0.00020535,2]
[368600191,1751225447338,-3402.29,0.00020535,2]
[368600192,1751225447348,-719.49,0.00020535,2]
[368600193,1751225447357,-1472.59,0.00020535,2]
[368600194,1751225447366,-1232.36,0.00020535,2]
[368600195,1751225447375,-460.0,0.00020535,2]
[368600196,1751225447385,-639.78,0.00020535,2]
[368600197,1751225447394,-929.91,0.00020535,2]
[368600198,1751225447403,-1435.41,0.00020535,2]
[368600199,1751225447413,-460.0,0.00020536,2]
[368600200,1751225447422,-3777.8,0.00020536,2]
[368600201,1751225447431,-1109.8,0.00020536,2]
[368600202,1751225447440,-516.4,0.00020537,2]
[368600203,1751225447449,-669.23,0.00020537,2]
[368600204,1751225447459,-2674.25726465,0.00020556,2]
[368600205,1751225447468,-198.702258,0.00020579,4]
[368600206,1751225447478,-4338.60309873,0.0002059,3]
[368600207,1751225447487,-213.82031328,0.0002059,3]
[368600208,1751225447496,-12567.05932091,0.0002059,3]
[368600209,1751225447505,-847.31290578,0.0002059,3]
[368600210,1751225447514,-160.0,0.0002059,3]
[368600211,1751225447524,-524.48349001,0.0002059,3]
[368600212,1751225447533,-6674.83,0.000206,2]
[368600213,1751225447542,-151.0,0.00020762,2]
[368600214,1751225447551,-151.0,0.00020762,2]
[368600215,1751225447561,-151.0,0.00020762,2]
[368600216,1751225447573,-151.0,0.00020762,2]
[368600217,1751225447590,-4338.60309873,0.00020762,3]
[368600218,1751225447599,-151.0,0.000208,4]
[368600219,1751225447609,-151.0,0.000208,3]
[368600220,1751225447618,-460.0,0.00020807,2]
[368600221,1751225447629,-460.0,0.00020807,2]
[368600222,1751225447638,-2381.83,0.00020807,2]
[368600223,1751225447648,-2684.88,0.00020807,2]
[368600224,1751225447658,-2736.72,0.00020807,2]
[368600225,1751225447667,-460.0,0.00020807,2]
[368600226,1751225447676,-460.0,0.00020807,2]
[368600227,1751225447686,-2889.61257794,0.00020807,2]
[368600228,1751225447960,-460.0,0.00018341,2]
[368600229,1751225447970,-460.0,0.00018615,2]
[368600230,1751225447980,-460.0,0.00018889,2]
[368600231,1751225447989,-157.2759432,0.00019161,2]
[368600232,1751225447998,-460.0,0.00019163,2]
[368600233,1751225448008,-460.0,0.00019437,2]
[368600234,1751225448018,-460.0,0.00019711,2]
[368600235,1751225448027,-460.0,0.00019985,2]
[368600236,1751225448036,-460.0,0.00020259,2]
[368600237,1751225448046,-460.0,0.00020533,2]
[368600238,1751225448055,-68.77742206,0.00020807,2]
[368600239,1751225448064,-1591.42,0.00020807,2]
[368600240,1751225448074,-460.0,0.00020807,2]
[368600241,1751225448084,-460.0,0.00020807,2]
[368600242,1751225448094,-1628.49,0.00020807,2]
[368600243,1751225448103,-460.0,0.00020807,2]
[368600244,1751225448112,-460.0,0.00020807,2]
[368600245,1751225448122,-752.51,0.00020807,2]
[368600246,1751225448131,-1216.82,0.00020807,2]
[368600247,1751225448141,-484.32,0.00020808,2]
[368600248,1751225448150,-508.72,0.00020808,2]
[368600249,1751225448160,-492.47,0.00020808,2]
[368600250,1751225448169,-823.83,0.00020808,2]
[368600251,1751225448179,-609.77,0.00020808,2]
[368600252,1751225448189,-460.0,0.00020808,2]
[368600253,1751225448198,-460.0,0.00020808,2]
[368600254,1751225448208,-494.47,0.00020808,2]
[368600255,1751225448217,-583.73,0.00020808,2]
[368600256,1751225448226,-952.44,0.00020808,2]
[368600257,1751225448236,-692.5,0.00020808,2]
[368600258,1751225448245,-460.0,0.00020808,2]
[368600259,1751225448254,-460.0,0.00020808,2]
[368600260,1751225448266,-460.0,0.00020808,2]
[368600261,1751225448275,-151.0,0.00020808,2]
[368600262,1751225448284,-460.0,0.00020808,2]
[368600263,1751225448295,-546.86,0.00020808,2]
[368600264,1751225448304,-320.62476692,0.00020809,2]
[368600265,1751225448313,-400.79334513,0.00020809,2]
[368600266,1751225448322,-460.0,0.00020809,2]
[368600267,1751225448332,-460.0,0.00020809,2]
[368600268,1751225448341,-560.46,0.00020809,2]
[368600269,1751225448350,-633.97,0.00020809,2]
[368600270,1751225448360,-460.0,0.00020809,2]
[368600271,1751225448369,-609.88,0.00020809,2]
[368600272,1751225448378,-889.22,0.00020809,2]
[368600273,1751225448388,-460.0,0.00020809,2]
[368600274,1751225448397,-824.53,0.00020809,2]
[368600275,1751225448407,-151.0,0.00020809,2]
[368600276,1751225448416,-460.0,0.00020809,2]
[368600277,1751225448426,-3402.29,0.00020809,2]
[368600278,1751225448436,-719.49,0.00020809,2]
[368600279,1751225448445,-1472.59,0.00020809,2]
[368600280,1751225448455,-1232.36,0.00020809,2]
[368600281,1751225448464,-460.0,0.00020809,2]
[368600282,1751225448474,-639.78,0.00020809,2]
[368600283,1751225448484,-929.91,0.00020809,2]
[368600284,1751225448493,-1435.41,0.00020809,2]
[368600285,1751225448503,-1175.297616,0.0002081,2]
[368600286,1751225448512,-460.0,0.0002081,2]
[368600287,1751225448521,-3777.8,0.0002081,2]
[368600288,1751225448530,-1109.8,0.0002081,2]
[368600289,1751225448540,-151.0,0.0002081,2]
[368600290,1751225448549,-265.107121,0.0002081,2]
[368600291,1751225448559,-151.0,0.0002081,2]
[368600292,1751225448569,-151.0,0.0002081,2]
[368600293,1751225448587,-516.4,0.00020811,2]
[368600294,1751225448597,-669.23,0.00020811,2]
[368600295,1751225448607,-151.0,0.00020812,2]
[368600296,1751225448618,-475.297874,0.00020812,2]
[368600297,1751225448631,-475.297874,0.00020812,2]
[368600298,1751225448641,-800.0,0.00020821,2]
[368600299,1751225448652,-159.291355,0.00020822,2]
[368600300,1751225448662,-575.3123006,0.00020822,2]
[368600301,1751225448671,-306.1858028,0.00020822,2]
[368600302,1751225448680,-159.291355,0.00020822,2]
[368600303,1751225448689,-153.0,0.00020822,2]
[368600304,1751225448698,-159.291355,0.00020822,2]
[368600305,1751225448707,-575.3123006,0.00020822,2]
[368600306,1751225448717,-153.0,0.00020822,2]
[368600307,1751225448727,-575.3123006,0.00020822,2]
[368600308,1751225448736,-153.0,0.00020822,2]
[368600309,1751225448745,-575.3123006,0.00020822,2]
[368600310,1751225448754,-177.5384831,0.00020822,2]
[368600311,1751225448763,-159.291355,0.00020822,2]
[368600312,1751225448773,-1150.6246012,0.00020822,2]
[368600313,1751225448782,-159.291355,0.00020822,2]
[368600314,1751225448791,-177.5384831,0.00020822,2]
[368600315,1751225448800,-177.5384831,0.00020822,2]
[368600316,1751225448810,-159.291355,0.00020822,2]
[368600317,1751225448819,-159.291355,0.00020822,2]
[368600318,1751225448828,-159.1421237,0.00020822,2]
[368600319,1751225448837,-306.0,0.00020822,2]
[368600320,1751225448846,-646.0,0.00020849,2]
[368600321,1751225448855,-2150.0,0.00020849,2]
[368600322,1751225448864,-406.0,0.00020849,2]
[368600323,1751225448874,-422.825,0.00020849,2]
[368600324,1751225448883,-864.43502584,0.00020849,2]
[368600325,1751225448896,-101.56497416,0.00020849,2]
[368600326,1751225448905,-151.0,0.00020872,2]
[368600327,1751225448915,-151.0,0.00020872,2]
[368600328,1751225448924,-151.0,0.00020872,2]
[368600329,1751225448933,-151.0,0.00020872,2]
[368600330,1751225448943,-151.0,0.00020872,2]
[368600331,1751225448952,-151.0,0.00020872,2]
[368600332,1751225448963,-151.598614,0.00020872,2]
[368600333,1751225448973,-151.0,0.00020872,2]
[368600334,1751225448982,-210.019832,0.00020872,2]
[368600335,1751225448992,-481.68474319,0.00020872,2]
[368600336,1751225449001,-519.76312072,0.00020881,2]
[368600337,1751225449011,-5000.0,0.00020892,2]
[368600338,1751225449020,-219.6181,0.00020899,2]
[368600339,1751225449030,-219.6181,0.00020899,2]
[368600340,1751225449039,-589.61348626,0.00020916,2]
[368600341,1751225449049,-483.02463483,0.00020919,2]
[368600342,1751225449059,-2000.0,0.00020919,2]
[368600343,1751225449068,-4338.60309873,0.00020934,4]
[368600344,1751225449077,-800.0,0.00020945,2]
[368600345,1751225449088,-996.0,0.00020982,2]
[368600346,1751225449098,-201.80882465,0.00020989,2]
[368600347,1751225449107,-213.82031328,0.0002099,10]
[368600348,1751225449117,-12567.05932091,0.0002099,10]
[368600349,1751225449127,-847.31290578,0.0002099,10]
[368600350,1751225449138,-699.54375432,0.00020999,2]
[368600351,1751225449147,-15180.1330456,0.00020999,2]
[368600352,1751225526114,-300.0,0.0001834,2]
[368600353,1751225526145,-1706.81,0.00018341,2]
[368600354,1751225526174,-460.0,0.00018341,2]
[368600355,1751225526202,-361.0,0.00018341,2]
[368600356,1751225526231,-460.0,0.00018341,2]
[368600357,1751225526260,-460.0,0.00018341,2]
[368600358,1751225526288,-460.0,0.00018341,2]
[368600359,1751225526315,-460.0,0.00018341,2]
[368600360,1751225526344,-460.0,0.00018341,2]
[368600361,1751225526372,-460.0,0.00018341,2]
[368600362,1751225526399,-595.22,0.00018341,2]
[368600363,1751225526427,-460.0,0.00018341,2]
[368600364,1751225526456,-1867.91,0.00018341,2]
[368600365,1751225526485,-460.0,0.00018341,2]
[368600366,1751225526516,-460.0,0.00018341,2]
[368600367,1751225526543,-460.0,0.00018341,2]
[368600368,1751225526572,-2099.39,0.00018341,2]
[368600369,1751225526605,-1964.6,0.00018341,2]
[368600370,1751225526633,-460.0,0.00018341,2]
[368600371,1751225526663,-460.0,0.00018341,2]
[368600372,1751225526694,-460.0,0.00018341,2]
[368600373,1751225526722,-460.0,0.00018342,2]
[368600374,1751225526750,-460.0,0.00018342,2]
[368600375,1751225526780,-652.04,0.00018342,2]
[368600376,1751225526810,-460.0,0.00018342,2]
[368600377,1751225526839,-460.0,0.00018342,2]
[368600378,1751225526870,-460.0,0.00018342,2]
[368600379,1751225526900,-460.0,0.00018342,2]
[368600380,1751225526929,-460.0,0.00018342,2]
[368600381,1751225526957,-460.0,0.00018342,2]
[368600382,1751225526987,-206.06,0.00018342,2]
[368600383,1751225527225,-253.94,0.00018342,2]
[368600384,1751225527254,-460.0,0.00018342,2]
[368600385,1751225527284,-2558.01,0.00018343,2]
[368600386,1751225527314,-940.21,0.00018343,2]
[368600387,1751225527341,-812.3,0.00018343,2]
[368600388,1751225527369,-460.0,0.00018343,2]
[368600389,1751225527397,-460.0,0.00018343,2]
[368600390,1751225531033,460.0,0.00018345,2]
[368600391,1751225536537,460.0,0.00018342,2]
[368600392,1751225542940,433.3441569,0.00018341,2]
[368600393,1751225544188,460.0,0.00018342,2]
[368600394,1751225544952,460.0,0.00018341,2]
[368600395,1751225548032,513.28,0.00018342,2]
[368600396,1751225548353,1109.53,0.00018341,2]
[368600397,1751225550341,460.0,0.00018341,2]
[368600398,1751225552845,460.0,0.00018341,2]
[368600399,1751225558425,460.0,0.00018342,2]
[368600400,1751225558541,460.0,0.00018341,2]
[368600401,1751225560487,460.0,0.00018341,2]
[368600402,1751225560864,460.0,0.00018342,2]
[368600403,1751225561633,460.0,0.00018342,2]
[368600404,1751225561742,897.14,0.00018343,2]
[368600405,1751225562346,460.0,0.00018341,2]
[368600406,1751225564136,460.17277286,0.00018341,2]
[368600407,1751225567875,2355.62,0.00018342,2]
[368600408,1751225573674,460.0,0.00018341,2]
[368600409,1751225575196,460.0,0.00018341,2]
[368600410,1751225575290,460.0,0.00018342,2]
[368600411,1751225581389,460.0,0.00018341,2]
[368600412,1751225583872,460.0,0.00018341,2]
[368600413,1751225586103,460.0,0.00018343,2]
[368600414,1751225586349,460.0,0.00018341,2]
[368600415,1751225587589,461.26,0.00018342,2]
[368600416,1751225588297,460.0,0.00018341,2]
[368600417,1751225589066,460.0,0.00018341,2]
[368600418,1751225589593,460.0,0.00018341,2]
[368600419,1751225589751,460.0,0.0001834,2]
[368600420,1751225590568,460.0,0.00018341,2]
[368600421,1751225593508,460.0,0.00018342,2]
[368600422,1751225594208,693.35,0.00018341,2]
[368600423,1751225595347,460.0,0.00018342,2]
[368600424,1751225595928,557.47,0.00018342,2]
[368600425,1751225597883,857.12,0.00018342,2]
[368600426,1751225598811,460.0,0.00018342,2]
[368600428,1751225599435,460.0,0.00018341,2]
[368600429,1751225600591,460.0,0.00018341,2]
[368600430,1751225606061,2928.96,0.00018343,2]
[368600431,1751225611218,460.0,0.00018341,2]
[368600432,1751225611868,460.0,0.00018341,2]
[368600433,1751225617305,219.91196086,0.00018342,2]
[368600434,1751225618851,460.0,0.00018341,2]
[368600435,1751225622023,709.81,0.00018341,2]
[368600436,1751225623988,460.51828828,0.00018341,2]
[368600437,1751225624850,472.84290823,0.00018341,2]
[368600438,1751225625960,260.74991287,0.00018342,2]
[368600439,1751225625982,199.25008713,0.00018342,2]
[368600440,1751225628473,460.0,0.00018342,2]
[368600441,1751225628894,460.0,0.00018341,2]
[368600442,1751225630855,460.0,0.00018345,2]
[368600443,1751225635544,460.0,0.00018341,2]
[368600444,1751225635837,460.0,0.00018341,2]
[368600445,1751225636855,492.43,0.00018342,2]
[368600446,1751225639823,548.63,0.00018341,2]
[368600447,1751225641261,460.0,0.00018341,2]
[368600448,1751225641773,460.0,0.0001834,2]
[368600449,1751225641941,460.0,0.00018342,2]
[368600450,1751225643284,460.0,0.00018341,2]
[368600451,1751225643528,460.0,0.00018341,2]
[368600452,1751225643789,460.0,0.00018341,2]
[368600453,1751225644054,460.0,0.00018343,2]
[368600454,1751225646468,283.66359152,0.00018342,2]
[368600455,1751225646837,460.0,0.00018341,2]
[368600456,1751225649441,460.0,0.00018341,2]
[368600457,1751225649738,460.0,0.00018342,2]
[368600458,1751225651413,460.0,0.00018341,2]
[368600459,1751225651507,948.6,0.00018343,2]
[368600460,1751225655245,460.0,0.00018345,2]
[368600461,1751225660618,460.0,0.00018341,2]
[368600462,1751225662105,460.0,0.00018341,2]
[368600463,1751225662524,460.0,0.00018341,2]
[368600464,1751225663560,460.0,0.00018341,2]
[368600465,1751225663588,460.0,0.00018342,2]
[368600466,1751225663616,661.4,0.00018342,2]
[368600467,1751225664880,460.0,0.00018341,2]
[368600468,1751225672209,460.0,0.00018342,2]
[368600469,1751225676473,460.0,0.00018341,2]
[368600470,1751225679187,460.0,0.00018341,2]
[368600471,1751225680030,473.39,0.00018341,2]
[368600472,1751225684041,460.0,0.00018342,2]
[368600473,1751225686510,460.0,0.00018342,2]
[368600474,1751225687120,460.0,0.00018345,2]
[368600475,1751225689293,460.0,0.00018341,2]
[368600476,1751225691432,460.0,0.00018341,2]
[368600477,1751225692229,460.0,0.00018341,2]
[368600478,1751225693574,460.0,0.00018341,2]
[368600479,1751225694526,460.0,0.00018343,2]
[368600480,1751225696495,460.0,0.00018341,2]
[368600481,1751225698238,500.0,0.00018342,2]
[368600482,1751225699787,2101.42,0.0001834,2]
[368600483,1751225700142,533.26,0.00018342,2]
[368600484,1751225700576,460.0,0.00018341,2]
[368600485,1751225702955,460.0,0.00018341,2]
[368600486,1751225705206,4212.61695462,0.000185,2]
[368600487,1751225708779,460.0,0.0001834,2]
[368600488,1751225714679,460.0,0.00018342,2]
[368600489,1751225714904,460.0,0.00018341,2]
[368600490,1751225719979,460.0,0.00018341,2]
[368600491,1751225730811,460.0,0.00018345,2]
[368600492,1751225731339,639.07,0.00018341,2]
[368600493,1751225732223,573.29,0.00018342,2]
[368600494,1751225733224,460.0,0.00018342,2]